bitfinex-derivatives/quotes_BTCF0:USTF0_20250823
["timestamp","ask_amount","ask_price","bid_price","bid_amount"]
[1755972564309,3.68699584,115230.0,115220.0,0.76175191]
[1755972564711,3.83109584,115230.0,115220.0,0.76175191]
[1755972564910,3.68699584,115230.0,115220.0,0.76175191]
[1755972569014,3.68695584,115230.0,115220.0,0.76175191]
[1755972570211,3.34483393,115230.0,115220.0,0.76175191]
[1755972570412,3.68695584,115230.0,115220.0,0.76175191]
[1755972571414,3.68695584,115230.0,115220.0,0.41963]
[1755972577010,2.89863584,115230.0,115220.0,0.74526402]
[1755972577220,3.68687584,115230.0,115220.0,0.77900402]
[1755972580619,3.68687584,115230.0,115220.0,0.44706389]
[1755972580918,3.68687584,115230.0,115220.0,0.7891858]
[1755972581712,3.32607584,115230.0,115220.0,0.7891858]
[1755972582923,3.32607584,115230.0,115220.0,0.77900402]
[1755972583116,2.96527584,115230.0,115220.0,0.77900402]
[1755972583315,3.32607584,115230.0,115220.0,0.77900402]
[1755972583515,3.32607584,115230.0,115220.0,0.7891858]
[1755972586123,2.96527584,115230.0,115220.0,0.7891858]
[1755972586424,3.32607584,115230.0,115220.0,0.7891858]
[1755972588423,3.32607584,115230.0,115220.0,0.77900402]
[1755972588622,3.32607584,115230.0,115220.0,0.7891858]
[1755972588824,3.32607584,115230.0,115220.0,0.77900402]
[1755972589326,3.32607584,115230.0,115220.0,0.7891858]
[1755972589525,3.32607584,115230.0,115220.0,0.43688211]
[1755972590226,3.32607584,115230.0,115220.0,0.44706389]
[1755972590429,3.32607584,115230.0,115220.0,0.43688211]
[1755972591428,3.66819775,115230.0,115220.0,0.38944211]
[1755972591729,3.66819775,115230.0,115220.0,0.37428211]
[1755972591922,3.66819775,115230.0,115220.0,0.35223211]
[1755972594824,3.66819775,115230.0,115220.0,0.3]
[1755972598449,3.66819775,115230.0,115220.0,0.32324]
[1755972598643,3.66819775,115230.0,115220.0,0.33278]
[1755972599247,2.87995775,115230.0,115220.0,0.33278]
[1755972599449,3.66791775,115230.0,115220.0,0.33278]
[1755972600150,2.98367393,115230.0,115220.0,0.33278]
[1755972600349,3.66791775,115230.0,115220.0,0.33278]
[1755972601946,4.02871775,115230.0,115220.0,0.33278]
[1755972604352,4.02871775,115230.0,115220.0,0.35605]
[1755972604652,4.02867775,115230.0,115220.0,0.41878]
[1755972604853,3.24075775,115230.0,115220.0,0.41878]
[1755972605053,3.66682341,115230.0,115220.0,0.41878]
[1755972605353,3.68654599,115230.0,115220.0,0.41878]
[1755972605649,3.34442408,115230.0,115220.0,0.41878]
[1755972605849,3.68654599,115230.0,115220.0,0.41878]
[1755972611357,4.0286679,115230.0,115220.0,0.41878]
[1755972612760,3.68654599,115230.0,115220.0,0.41878]
[1755972613359,2.89862599,115230.0,115220.0,0.41878]
[1755972613553,3.68646599,115230.0,115220.0,0.41878]
[1755972614460,2.96486599,115230.0,115220.0,0.41878]
[1755972614660,3.68646599,115230.0,115220.0,0.41878]
[1755972615460,3.83056599,115230.0,115220.0,0.41878]
[1755972615756,3.68646599,115230.0,115220.0,0.41878]
[1755972616855,3.32566599,115230.0,115220.0,0.41878]
[1755972618565,3.32566599,115230.0,115220.0,0.38663]
[1755972618954,3.32566599,115230.0,115220.0,0.41878]
[1755972619666,3.32717688,115230.0,115220.0,0.41878]
[1755972621566,3.32717688,115230.0,115220.0,0.38663]
[1755972622463,3.32717688,115230.0,115220.0,0.41878]
[1755972624657,3.32717688,115230.0,115220.0,0.38663]
[1755972625172,3.32717688,115230.0,115220.0,0.37247]
[1755972625973,1.67649688,115230.0,115220.0,0.37247]
[1755972627669,1.67646941,115230.0,115220.0,0.37247]
[1755972631673,1.67646941,115230.0,115220.0,0.38702]
[1755972633573,1.3343475,115230.0,115220.0,0.38702]
[1755972633873,1.67646941,115230.0,115220.0,0.38702]
[1755972637881,1.67646941,115230.0,115220.0,0.72914191]
[1755972639781,1.31566941,115230.0,115220.0,0.72914191]
[1755972639974,1.67646941,115230.0,115220.0,0.72914191]
[1755972640770,1.67646941,115230.0,115220.0,0.76083191]
[1755972646395,1.67646941,115230.0,115220.0,0.38702]
[1755972648900,1.67646941,115230.0,115220.0,0.41871]
[1755972651799,1.31566941,115230.0,115220.0,0.41871]
[1755972652004,1.67646941,115230.0,115220.0,0.41871]
[1755972654405,1.67646941,115230.0,115220.0,0.38702]
[1755972655496,1.67646941,115230.0,115220.0,0.41871]
[1755972657004,1.67646941,115230.0,115220.0,0.38702]
[1755972657797,2.01859132,115230.0,115220.0,0.35605]
[1755972659506,2.01859132,115230.0,115220.0,0.38588]
[1755972659706,3.66935132,115230.0,115220.0,0.41986]
[1755972660007,3.32682941,115230.0,115220.0,0.41986]
[1755972669303,1.67606941,115230.0,115220.0,0.41986]
[1755972670411,1.3339475,115230.0,115220.0,0.41986]
[1755972670610,1.67606941,115230.0,115220.0,0.41986]
[1755972674512,1.3339475,115230.0,115220.0,0.41986]
[1755972674812,1.67606941,115230.0,115220.0,0.41986]
[1755972675207,1.67606941,115230.0,115220.0,0.43004176]
[1755972675415,1.67606941,115230.0,115220.0,0.43004168]
[1755972675909,1.67606941,115230.0,115220.0,0.41986]
[1755972676314,1.67606941,115230.0,115220.0,0.43004164]
[1755972677113,1.67606941,115230.0,115220.0,0.41986]
[1755972677508,0.88862941,115230.0,115220.0,0.76198191]
[1755972677716,1.67590941,115230.0,115220.0,0.76198191]
[1755972677906,1.3337875,115230.0,115220.0,0.76198191]
[1755972678109,1.67590941,115230.0,115220.0,0.77216352]
[1755972678415,1.67590941,115230.0,115220.0,0.76198191]
[1755972678715,1.67590941,115230.0,115220.0,0.77216342]
[1755972680419,1.67590941,115230.0,115220.0,0.76198191]
[1755972682216,1.67590941,115230.0,115220.0,0.77216342]
[1755972684515,0.88862941,115230.0,115220.0,0.76198191]
[1755972684721,1.67586941,115230.0,115220.0,0.77216342]
[1755972685022,1.67586941,115230.0,115220.0,0.76198191]
[1755972685220,1.67586941,115230.0,115220.0,0.77216341]
[1755972685818,3.32662941,115230.0,115220.0,0.77216341]
[1755972689822,3.32662941,115230.0,115220.0,0.76198191]
[1755972690423,3.3069343,115230.0,115220.0,0.76198191]
[1755972696426,3.3069343,115230.0,115220.0,0.41986]
[1755972696627,3.3069343,115230.0,115220.0,0.76198191]
[1755972698920,3.32646023,115230.0,115220.0,0.76198191]
[1755972699622,3.3069343,115230.0,115220.0,0.76198191]
[1755972700325,1.6561743,115230.0,115220.0,0.76198191]
[1755972700628,1.67570019,115230.0,115220.0,0.7721633]
[1755972700927,1.67554019,115230.0,115220.0,0.7721633]
[1755972701231,1.67554019,115230.0,115220.0,0.76198191]
[1755972701628,1.67554019,115230.0,115220.0,0.7721633]
[1755972702027,1.6560143,115230.0,115220.0,0.76198191]
[1755972704226,0.8689343,115230.0,115220.0,0.76198191]
[1755972704427,1.6560143,115230.0,115220.0,0.76198191]
[1755972705429,1.31389239,115230.0,115220.0,0.76198191]
[1755972705630,1.6560143,115230.0,115220.0,0.76198191]
[1755972706131,0.52681239,115230.0,115220.0,0.81482091]
[1755972706322,1.31385239,115230.0,115220.0,0.92173831]
[1755972706634,1.29091239,115230.0,115220.0,0.92173831]
[1755972706929,1.29091239,115230.0,115220.0,1.17173831]
[1755972707330,1.29091239,115230.0,115220.0,1.16155695]
[1755972708526,0.03923089,115230.0,115220.0,0.92173748]
[1755972708736,0.78804,115230.0,115220.0,1.4702009]
[1755972708926,0.78804,115230.0,115220.0,1.54805929]
[1755972710431,0.78804,115230.0,115220.0,1.4702009]
[1755972711132,0.8748515,115230.0,115220.0,1.4702009]
[1755972711839,0.0878115,115230.0,115220.0,1.4702009]
[1755972712024,0.8748115,115230.0,115220.0,1.4702009]
[1755972712224,0.8748115,115230.0,115220.0,1.53245229]
[1755972712732,0.0878115,115230.0,115220.0,1.53245229]
[1755972712928,0.8970815,115230.0,115220.0,1.53245229]
[1755972713132,0.9141115,115230.0,115220.0,1.53245229]
[1755972714131,0.9141115,115230.0,115220.0,1.53245221]
[1755972716034,0.9291415,115230.0,115220.0,1.5222723]
[1755972717329,0.9291415,115230.0,115220.0,1.53245218]
[1755972717833,0.9291415,115230.0,115220.0,1.55018393]
[1755972718935,0.9291415,115230.0,115220.0,1.30018393]
[1755972720032,0.9291415,115230.0,115220.0,0.95806202]
[1755972720234,0.9291415,115230.0,115220.0,1.30018393]
[1755972722739,0.9291415,115230.0,115220.0,1.29000405]
[1755972722940,0.9291415,115230.0,115220.0,1.30018393]
[1755972725344,0.9291415,115230.0,115220.0,1.23793254]
[1755972725647,0.9291415,115230.0,115220.0,1.31579093]
[1755972726343,0.9291415,115230.0,115220.0,0.97366902]
[1755972726544,0.9291415,115230.0,115220.0,1.31579093]
[1755972728850,0.9291415,115230.0,115220.0,0.97366902]
[1755972729146,0.9291415,115230.0,115220.0,1.31579093]
[1755972731455,0.1421815,115230.0,115220.0,1.31579093]
[1755972731657,0.9289015,115230.0,115220.0,1.31579093]
[1755972732452,0.9289015,115230.0,115220.0,1.30561105]
[1755972732657,0.9289015,115230.0,115220.0,1.31579091]
[1755972738261,0.9289015,115230.0,115220.0,1.23793252]
[1755972739163,0.9289015,115230.0,115220.0,1.23793253]
[1755972742558,0.9289015,115230.0,115220.0,1.23793252]
[1755972745468,0.9289015,115230.0,115220.0,1.34693427]
[1755972751974,0.9289015,115230.0,115220.0,1.00481236]
[1755972752273,0.9528015,115230.0,115220.0,1.34693427]
[1755972752475,0.9528015,115230.0,115220.0,1.3469342]
[1755972754173,0.9289015,115230.0,115220.0,1.3469342]
[1755972757971,0.9289015,115230.0,115220.0,1.00481229]
[1755972758372,0.9289015,115230.0,115220.0,1.3469342]
[1755972761982,0.9289015,115230.0,115220.0,1.00481229]
[1755972762184,0.9289015,115230.0,115220.0,1.34693428]
[1755972762785,0.9286215,115230.0,115220.0,1.34693428]
[1755972764583,0.9286215,115230.0,115220.0,1.00481237]
[1755972764783,0.9286215,115230.0,115220.0,1.34693428]
[1755972765078,0.9286215,115230.0,115220.0,0.98613428]
[1755972765486,0.9286215,115230.0,115220.0,1.0640896]
[1755972765677,0.9286215,115230.0,115220.0,0.95508785]
[1755972768089,0.9286215,115230.0,115220.0,1.31588785]
[1755972769195,0.9286215,115230.0,115220.0,0.95508785]
[1755972769690,0.9286215,115230.0,115220.0,1.31588785]
[1755972769989,0.9285815,115230.0,115220.0,1.31588785]
[1755972771094,0.9285815,115230.0,115220.0,0.95508785]
[1755972771987,0.9285815,115230.0,115220.0,0.955088]
[1755972772496,0.9285815,115230.0,115220.0,0.94490798]
[1755972772790,0.9285815,115230.0,115220.0,0.95508795]
[1755972775392,0.9285815,115230.0,115220.0,0.87713263]
[1755972775693,0.9285815,115230.0,115220.0,0.98613438]
[1755972777580,0.1421815,115230.0,115220.0,0.98613438]
[1755972777785,0.9285015,115230.0,115220.0,1.34693438]
[1755972780189,0.1421815,115230.0,115220.0,1.34693438]
[1755972780395,0.9285015,115230.0,115220.0,1.34693438]
[1755972781194,0.9285015,115230.0,115220.0,1.33675441]
[1755972781392,0.9285015,115230.0,115220.0,1.3469343]
[1755972785598,0.9285015,115230.0,115220.0,1.00481239]
[1755972785798,0.9285015,115230.0,115220.0,1.3469343]
[1755972789002,0.9285015,115230.0,115220.0,1.34693428]
[1755972790500,0.9285015,115230.0,115220.0,1.33675441]
[1755972790709,0.9285015,115230.0,115220.0,1.3469343]
[1755972799611,0.9285015,115230.0,115220.0,1.3369343]
[1755972800415,0.9285015,115230.0,115220.0,1.32675441]
[1755972800616,0.9285015,115230.0,115220.0,1.3369343]
[1755972805123,0.9285015,115230.0,115220.0,1.22793255]
[1755972805425,0.9285015,115230.0,115220.0,1.30588246]
[1755972806527,0.9285015,115230.0,115220.0,0.94508246]
[1755972807327,0.9285015,115230.0,115220.0,0.51614155]
[1755972807626,0.9285015,115230.0,115220.0,0.94508226]
[1755972808328,0.9512015,115230.0,115220.0,0.94508226]
[1755972809227,0.9512015,115230.0,115220.0,0.60296035]
[1755972809524,0.9512015,115230.0,115220.0,0.94508226]
[1755972810425,0.9512015,115230.0,115220.0,0.9450825]
[1755972815634,0.9512015,115230.0,115220.0,0.97613434]
[1755972819240,0.9512015,115230.0,115220.0,0.86713259]
[1755972820034,0.9512015,115230.0,115220.0,0.85695246]
[1755972820338,0.9512015,115230.0,115220.0,0.86713257]
[1755972822140,0.1648815,115230.0,115220.0,0.86713257]
[1755972822441,0.9508815,115230.0,115220.0,0.86713257]
[1755972822836,0.9508815,115230.0,115220.0,0.52501066]
[1755972823035,0.9508815,115230.0,115220.0,0.86713257]
[1755972823237,0.1648815,115230.0,115220.0,0.86713257]
[1755972823437,0.9508815,115230.0,115220.0,0.86713257]
[1755972823844,0.9508815,115230.0,115220.0,0.52501066]
[1755972824043,0.9508815,115230.0,115220.0,0.86713257]
[1755972824642,0.9508815,115230.0,115220.0,0.97613432]
[1755972824938,0.9508815,115230.0,115220.0,0.43819186]
[1755972825139,0.9508815,115230.0,115220.0,0.85825682]
[1755972828447,1.29300341,115230.0,115220.0,0.85825682]
[1755972828647,1.29300341,115230.0,115220.0,0.78031377]
[1755972829936,1.29300341,115230.0,115220.0,0.78031382]
[1755972832050,1.29300341,115230.0,115220.0,0.88931557]
[1755972833855,1.29300341,115230.0,115220.0,0.85491557]
[1755972834154,2.2474362,115230.0,115220.0,0.31791191]
[1755972834355,2.2474362,115230.0,115220.0,0.38026034]
[1755972837852,2.2474362,115230.0,115220.0,0.36252859]
[1755972839058,1.9974362,115230.0,115220.0,0.36252859]
[1755972839659,1.9974362,115230.0,115220.0,0.35234843]
[1755972839859,1.31319238,115230.0,115220.0,0.36252968]
[1755972840158,1.65531429,115230.0,115220.0,0.39589968]
[1755972841955,1.65531429,115230.0,115220.0,0.41712968]
[1755972843768,1.65531429,115230.0,115220.0,0.43159968]
[1755972846261,1.65531429,115230.0,115220.0,0.44805968]
[1755972847162,1.65531429,115230.0,115220.0,0.48200968]
[1755972847362,1.65531429,115230.0,115220.0,0.47182843]
[1755972848866,0.86931429,115230.0,115220.0,0.47182843]
[1755972849065,1.65523429,115230.0,115220.0,0.47182843]
[1755972855470,1.65523429,115230.0,115220.0,0.40948]
[1755972856473,2.01603429,115230.0,115220.0,0.40948]
[1755972861375,2.01603429,115230.0,115220.0,0.41966151]
[1755972861874,2.01603429,115230.0,115220.0,0.41966148]
[1755972863374,2.03551436,115230.0,115220.0,0.41966148]
[1755972864378,2.03543436,115230.0,115220.0,0.41966148]
[1755972865378,2.01595429,115230.0,115220.0,0.48200991]
[1755972868374,2.01595429,115230.0,115220.0,0.48200989]
[1755972876081,1.23011429,115230.0,115220.0,0.48200989]
[1755972876283,2.01591429,115230.0,115220.0,0.48200989]
[1755972876882,1.67379238,115230.0,115220.0,0.48200989]
[1755972877076,2.01591429,115230.0,115220.0,0.48200989]
[1755972877278,2.01591429,115230.0,115220.0,0.47182843]
[1755972877478,2.01591429,115230.0,115220.0,0.81395034]
[1755972877679,0.86931429,115230.0,115220.0,0.81395034]
[1755972877874,0.86931429,115230.0,115220.0,0.82413145]
[1755972878184,1.65507429,115230.0,115220.0,0.82413136]
[1755972880090,1.63237429,115230.0,115220.0,0.82413136]
[1755972880687,1.65562429,115230.0,115220.0,0.82413136]
[1755972883086,1.65562429,115230.0,115220.0,0.48200945]
[1755972883286,1.65562429,115230.0,115220.0,0.82413136]
[1755972883887,1.65562429,115230.0,115220.0,0.81395034]
[1755972884482,1.65562429,115230.0,115220.0,0.47182843]
[1755972884686,1.65562429,115230.0,115220.0,0.81395034]
[1755972886682,0.86986429,115230.0,115220.0,0.81395034]
[1755972886883,1.65558429,115230.0,115220.0,0.81395034]
[1755972887088,0.48746238,115230.0,115220.0,0.90076924]
[1755972887388,0.89735238,115230.0,115220.0,1.09860155]
[1755972887583,0.89735238,115230.0,115220.0,1.17654793]
[1755972888089,0.89735238,115230.0,115220.0,1.17654766]
[1755972888388,0.87504238,115230.0,115220.0,1.17654766]
[1755972888687,0.08932238,115230.0,115220.0,1.17654766]
[1755972888882,0.87504238,115230.0,115220.0,1.17654766]
[1755972891790,0.87504238,115230.0,115220.0,0.83442575]
[1755972891984,0.89207238,115230.0,115220.0,1.17654766]
[1755972893584,0.08932238,115230.0,115220.0,1.17654766]
[1755972893789,0.87496238,115230.0,115220.0,1.17654766]
[1755972894091,0.89199238,115230.0,115220.0,1.17654766]
[1755972894788,0.89199238,115230.0,115220.0,1.09860128]
[1755972895089,0.91483238,115230.0,115220.0,1.09860128]
[1755972895690,0.93069238,115230.0,115220.0,1.09860128]
[1755972897695,0.93069238,115230.0,115220.0,1.09860113]
[1755972898290,0.93069238,115230.0,115220.0,1.08842081]
[1755972898486,0.93069238,115230.0,115220.0,1.09860113]
[1755972898984,0.93069238,115230.0,115220.0,0.84860113]
[1755972900389,0.95459238,115230.0,115220.0,0.84860113]
[1755972901397,0.95459238,115230.0,115220.0,0.50647922]
[1755972901704,0.95459238,115230.0,115220.0,0.84860113]
[1755972902691,0.12802238,115230.0,115220.0,0.84860113]
[1755972902883,0.1435415,115230.0,115220.0,0.84860113]
[1755972903089,0.9291015,115230.0,115220.0,0.84860113]
[1755972903595,0.9291015,115230.0,115220.0,0.92654751]
[1755972905094,0.9291015,115230.0,115220.0,0.5844256]
[1755972905297,0.9291015,115230.0,115220.0,0.92654751]
[1755972905497,0.9291015,115230.0,115220.0,0.988865]
[1755972905690,0.9291015,115230.0,115220.0,0.91091862]
[1755972906593,0.9291015,115230.0,115220.0,0.91091844]
[1755972912903,0.9291015,115230.0,115220.0,0.56879653]
[1755972913201,0.9291015,115230.0,115220.0,0.91091844]
[1755972915294,0.9291015,115230.0,115220.0,0.84860095]
[1755972915695,0.9291015,115230.0,115220.0,0.92654733]
[1755972916801,0.9291015,115230.0,115220.0,0.84860095]
[1755972916998,0.9530015,115230.0,115220.0,0.84860095]
[1755972917302,0.9530015,115230.0,115220.0,0.92651543]
[1755972919805,0.9530015,115230.0,115220.0,0.84860095]
[1755972923406,0.9530015,115230.0,115220.0,0.92653359]
[1755972925412,0.1674415,115230.0,115220.0,0.92653359]
[1755972925594,0.9528815,115230.0,115220.0,0.92653359]
[1755972926106,0.9289815,115230.0,115220.0,0.92653359]
[1755972926807,0.9289815,115230.0,115220.0,0.91635345]
[1755972927007,0.9289815,115230.0,115220.0,0.92653359]
[1755972927402,0.9289815,115230.0,115220.0,0.84860095]
[1755972928997,0.9517715,115230.0,115220.0,0.9576027]
[1755972929202,0.9517715,115230.0,115220.0,1.3184027]
[1755972929608,0.9517715,115230.0,115220.0,1.31840264]
[1755972931009,0.9517715,115230.0,115220.0,1.20940089]
[1755972931206,0.001,115230.0,115220.0,1.20940089]
[1755972931411,0.78644,115230.0,115220.0,1.5515228]
[1755972931810,0.78644,115230.0,115220.0,1.66933827]
[1755972932413,0.78644,115230.0,115220.0,1.91052455]
[1755972932614,0.78644,115230.0,115220.0,1.8015228]
[1755972933610,0.78644,115230.0,115220.0,1.91057219]
[1755972934625,0.78644,115230.0,115220.0,1.91941452]
[1755972935027,0.78644,115230.0,115220.0,1.91057219]
[1755972936030,0.78644,115230.0,115220.0,1.90039211]
[1755972936229,0.78644,115230.0,115220.0,1.91057134]
[1755972938827,0.78644,115230.0,115220.0,1.91927016]
[1755972941238,0.78644,115230.0,115220.0,1.91057134]
[1755972941934,0.78644,115230.0,115220.0,1.9190621]
[1755972943532,0.001,115230.0,115220.0,1.6690621]
[1755972943739,0.78632,115230.0,115220.0,1.9190621]
[1755972945226,0.001,115230.0,115220.0,1.9190621]
[1755972945839,0.001,115230.0,115220.0,1.91906152]
[1755972947236,0.001,115230.0,115220.0,2.70434152]
[1755972949240,0.001,115230.0,115220.0,1.81001213]
[1755972953132,0.001,115230.0,115220.0,1.88781449]
[1755972953540,0.001,115230.0,115220.0,1.81001213]
[1755972955540,3.534e-05,115230.0,115220.0,1.79983348]
[1755972955741,3.534e-05,115230.0,115220.0,1.81001199]
[1755972956838,3.534e-05,115230.0,115220.0,1.66001199]
[1755972958043,3.534e-05,115230.0,115220.0,2.07729409]
[1755972958244,0.05455534,115230.0,115220.0,2.07729409]
[1755972959644,0.03232534,115230.0,115220.0,2.18622795]
[1755972959841,3.534e-05,115230.0,115220.0,2.18622795]
[1755972961750,3.534e-05,115230.0,115220.0,2.07729409]
[1755972962249,3.534e-05,115230.0,115220.0,2.18625289]
[1755972964347,3.534e-05,115230.0,115220.0,2.17607438]
[1755972964547,3.534e-05,115230.0,115220.0,2.18625246]
[1755972972347,3.534e-05,115230.0,115220.0,2.07729366]
[1755972973358,0.05452,115240.0,115230.0,0.1340714]
[1755972973556,0.05452,115240.0,115230.0,1.88890286]
[1755972973958,0.05452,115240.0,115230.0,1.96677119]
[1755972974456,0.05452,115240.0,115230.0,1.85775553]
[1755972975061,0.05552,115240.0,115230.0,1.85775553]
[1755972975558,0.05552,115240.0,115230.0,1.17351171]
[1755972975861,0.05552,115240.0,115230.0,1.85775553]
[1755972976159,0.01626,115240.0,115230.0,1.85775553]
[1755972976561,0.03329,115240.0,115230.0,1.17351171]
[1755972976764,0.03329,115240.0,115230.0,1.85775553]
[1755972978562,0.03229,115240.0,115230.0,1.85775553]
[1755972979463,0.01703,115240.0,115230.0,1.85775553]
[1755972980366,0.01703,115240.0,115230.0,1.7798872]
[1755972980752,0.01703,115240.0,115230.0,1.88890286]
[1755972981565,0.9512168,115250.0,115240.0,0.07122]
[1755972981756,0.9512168,115250.0,115240.0,1.1792106]
[1755972982364,0.9512168,115250.0,115240.0,1.2660145]
[1755972982764,0.9522168,115250.0,115240.0,1.2660145]
[1755972983559,0.9522168,115250.0,115240.0,1.37503016]
[1755972983963,0.9522168,115250.0,115240.0,1.28822626]
[1755972985565,0.9522168,115250.0,115240.0,1.1792106]
[1755972985957,0.9522168,115250.0,115240.0,1.2660145]
[1755972987168,0.9522168,115250.0,115240.0,1.37503016]
[1755972987561,0.9536568,115250.0,115240.0,1.37503016]
[1755972990467,0.9536568,115250.0,115240.0,1.36485208]
[1755972990668,0.9536568,115250.0,115240.0,1.37503016]
[1755972992572,0.9536568,115250.0,115240.0,1.2660145]
[1755972993769,0.9536568,115250.0,115240.0,1.1792106]
[1755972995574,0.9536568,115250.0,115240.0,1.25723987]
[1755972996681,0.9536568,115250.0,115240.0,0.89643987]
[1755972998880,0.9536568,115250.0,115240.0,0.89823987]
[1755972999178,1.29577871,115250.0,115240.0,0.89823987]
[1755972999385,0.9536568,115250.0,115240.0,0.89823987]
[1755973000379,0.9536568,115250.0,115240.0,0.89824017]
[1755973002082,0.9536568,115250.0,115240.0,0.8202109]
[1755973004574,0.1662168,115250.0,115240.0,0.8202109]
[1755973004874,0.9530968,115250.0,115240.0,0.9070148]
[1755973005581,0.9530968,115250.0,115240.0,0.98504407]
[1755973006584,0.9530968,115250.0,115240.0,0.89824017]
[1755973011286,0.9520968,115250.0,115240.0,0.89824017]
[1755973012588,0.9283968,115250.0,115240.0,0.98504407]
[1755973017994,0.9522968,115250.0,115240.0,0.98504407]
[1755973018294,0.9283968,115250.0,115240.0,0.98504407]
[1755973018484,0.9283968,115250.0,115240.0,0.9070148]
[1755973019494,0.9522968,115250.0,115240.0,0.9070148]
[1755973019693,0.9522968,115250.0,115240.0,0.56489289]
[1755973019894,0.9522968,115250.0,115240.0,0.9070148]
[1755973021103,0.9522968,115250.0,115240.0,1.01603046]
[1755973026310,0.07842,115250.0,115240.0,1.01603046]
[1755973026504,0.86522,115250.0,115240.0,1.01603046]
[1755973029111,0.9520164,115250.0,115240.0,1.09404652]
[1755973029412,0.9520164,115250.0,115240.0,0.98503086]
[1755973032014,0.1652164,115250.0,115240.0,0.97485248]
[1755973032315,0.1652164,115250.0,115240.0,0.98503086]
[1755973032316,0.86498,115250.0,115240.0,0.98503086]
[1755973032509,0.84108,115250.0,115240.0,0.98503086]
[1755973035318,0.84108,115250.0,115240.0,0.97485248]
[1755973035518,0.84108,115250.0,115240.0,0.9070148]
[1755973036516,0.4343721,115260.0,115250.0,0.1347664]
[1755973036819,1.2143821,115260.0,115250.0,0.92983126]
[1755973037620,0.4104721,115260.0,115250.0,0.92983126]
[1755973037820,1.2143421,115260.0,115250.0,0.92983126]
[1755973038013,1.2153421,115260.0,115250.0,0.92983126]
[1755973038210,1.2153421,115260.0,115250.0,0.86742669]
[1755973038722,1.2153421,115260.0,115250.0,0.92981177]
[1755973040319,0.8545421,115260.0,115250.0,0.92981177]
[1755973040523,0.79632154,115260.0,115250.0,0.92981177]
[1755973040722,0.78768,115260.0,115250.0,0.92981177]
[1755973041819,0.78768,115260.0,115250.0,0.91963396]
[1755973042018,0.78768,115260.0,115250.0,0.92981152]
[1755973042218,0.78768,115260.0,115250.0,0.58768961]
[1755973042418,0.78768,115260.0,115250.0,0.91963396]
[1755973042716,0.78768,115260.0,115250.0,0.92981152]
[1755973043423,0.78768,115260.0,115250.0,0.9297771]
[1755973044517,0.78768,115260.0,115250.0,0.58765519]
[1755973044722,0.80471,115260.0,115250.0,0.9297771]
[1755973044922,0.80471,115260.0,115250.0,1.2905771]
[1755973045124,0.80471,115260.0,115250.0,1.22822587]
[1755973045618,0.80471,115260.0,115250.0,1.30624193]
[1755973045818,0.78768,115260.0,115250.0,1.30624193]
[1755973046718,0.80471,115260.0,115250.0,1.30624193]
[1755973049123,0.78768,115260.0,115250.0,1.64836384]
[1755973049521,0.78768,115260.0,115250.0,1.30624193]
[1755973049825,0.78768,115260.0,115250.0,1.64836384]
[1755973050225,0.78768,115260.0,115250.0,1.89836384]
[1755973051124,0.78768,115260.0,115250.0,1.55624193]
[1755973051424,0.78768,115260.0,115250.0,1.47822587]
[1755973051624,0.78768,115260.0,115250.0,1.81017022]
[1755973051818,0.78768,115260.0,115250.0,1.47822534]
[1755973052221,0.78768,115260.0,115250.0,1.82034725]
[1755973052426,0.78768,115260.0,115250.0,1.47822534]
[1755973052619,0.9548089,115260.0,115250.0,1.19637534]
[1755973052825,0.9548089,115260.0,115250.0,1.27427702]
[1755973053123,0.9548089,115260.0,115250.0,1.18748062]
[1755973053318,0.9548089,115260.0,115250.0,1.22143062]
[1755973054426,0.9548089,115260.0,115250.0,1.30822702]
[1755973055129,0.9548089,115260.0,115250.0,0.87930871]
[1755973055334,0.9548089,115260.0,115250.0,1.22143062]
[1755973056019,0.9548089,115260.0,115250.0,1.18748062]
[1755973056219,0.9548089,115260.0,115250.0,1.22143062]
[1755973056526,1.29693081,115260.0,115250.0,0.45407956]
[1755973056727,1.29693081,115260.0,115250.0,0.78054147]
[1755973057325,1.29693081,115260.0,115250.0,0.82808147]
[1755973057928,1.29693081,115260.0,115250.0,0.78054147]
[1755973058222,2.25136322,115260.0,115250.0,0.38250672]
[1755973058624,2.25136322,115260.0,115250.0,0.33139871]
[1755973058818,2.25136322,115260.0,115250.0,0.26907]
[1755973059023,2.41541311,115260.0,115250.0,0.1825747]
[1755973059229,0.0868039,115240.0,115230.0,0.08539871]
[1755973059426,1.25461029,115240.0,115230.0,0.38539871]
[1755973059619,2.2075322,115240.0,115230.0,0.38539871]
[1755973059822,2.2075322,115240.0,115230.0,0.36232871]
[1755973060018,0.0868115,115230.0,115220.0,0.08539871]
[1755973060334,1.13185532,115230.0,115220.0,0.3]
[1755973060532,1.12985532,115230.0,115220.0,0.3]
[1755973061225,0.086819,115220.0,115210.0,0.08539871]
[1755973061417,1.57766091,115220.0,115210.0,0.34232871]
[1755973061730,1.84702185,115220.0,115210.0,0.28]
[1755973062127,1.84502185,115220.0,115210.0,0.30307]
[1755973062323,1.80701029,115220.0,115210.0,0.30307]
[1755973062729,1.80701029,115220.0,115210.0,0.30707]
[1755973063328,1.01909029,115220.0,115210.0,0.284]
[1755973063530,1.80705029,115220.0,115210.0,0.30707]
[1755973064327,1.80701029,115220.0,115210.0,0.30707]
[1755973065031,1.01909029,115220.0,115210.0,0.31641]
[1755973065328,1.25285994,115220.0,115210.0,0.40242]
[1755973065525,0.46497994,115220.0,115210.0,0.79335685]
[1755973065730,1.25297994,115220.0,115210.0,1.04335685]
[1755973065932,0.10417994,115220.0,115210.0,1.04335685]
[1755973066123,0.89229994,115220.0,115210.0,1.46648556]
[1755973066924,0.10417994,115220.0,115210.0,1.46648556]
[1755973067224,0.89233994,115220.0,115210.0,1.46648556]
[1755973067429,0.89233994,115220.0,115210.0,1.47666649]
[1755973068034,0.10417994,115220.0,115210.0,1.47666649]
[1755973068421,0.89221994,115220.0,115210.0,1.47666649]
[1755973069028,0.80740094,115220.0,115210.0,1.47666649]
[1755973069933,0.10617994,115220.0,115210.0,1.47666649]
[1755973070137,0.89421994,115220.0,115210.0,1.47666649]
[1755973070338,0.80740094,115220.0,115210.0,1.47666649]
[1755973071038,0.80740094,115220.0,115210.0,1.46648556]
[1755973071231,0.80740094,115220.0,115210.0,1.47666648]
[1755973072338,0.89421994,115220.0,115210.0,1.47666648]
[1755973074438,0.89421994,115220.0,115210.0,1.38983983]
[1755973075032,0.89421994,115220.0,115210.0,1.08572948]
[1755973075238,0.89421994,115220.0,115210.0,1.38983983]
[1755973075538,0.89421994,115220.0,115210.0,1.32751112]
[1755973078943,0.89421994,115220.0,115210.0,1.07751112]
[1755973080232,1.25501994,115220.0,115210.0,0.71671112]
[1755973080739,1.25501994,115220.0,115210.0,0.70653035]
[1755973080939,1.25501994,115220.0,115210.0,0.71671147]
[1755973081746,0.46697994,115220.0,115210.0,0.71671147]
[1755973081948,1.25541994,115220.0,115210.0,0.71671147]
[1755973082342,1.25541994,115220.0,115210.0,0.41260112]